bitfinex-derivatives/quotes_BNBF0:USTF0_20250908
["timestamp","ask_amount","ask_price","bid_price","bid_amount"]
[1757364923461,0.61346719,875.39,874.4,0.1984506]
[1757364923659,0.61346719,875.38,874.4,0.1984506]
[1757364923861,0.61346719,875.37,874.4,0.1984506]
[1757364924060,0.61346719,875.36,874.4,0.1984506]
[1757364924260,0.61346719,875.35,874.4,0.1984506]
[1757364924458,0.61346719,875.34,874.4,0.1984506]
[1757364924660,0.61346719,875.33,874.4,0.1984506]
[1757364924962,0.61346719,875.32,874.4,0.1984506]
[1757364925159,0.61346719,875.31,874.4,0.1984506]
[1757364925364,0.61346719,875.3,874.4,0.1984506]
[1757364925563,0.61346719,875.29,874.4,0.1984506]
[1757364925763,1.53242595,875.57,874.4,0.1984506]
[1757364925962,0.61328802,875.56,874.4,0.1984506]
[1757364926261,0.61328802,875.55,874.4,0.1984506]
[1757364926464,0.61328802,875.54,874.4,0.1984506]
[1757364926664,0.61328802,875.53,874.4,0.1984506]
[1757364926964,0.61328802,875.52,874.4,0.1984506]
[1757364927165,0.61328802,875.51,874.4,0.1984506]
[1757364927465,0.61328802,875.5,874.4,0.1984506]
[1757364927665,0.61328802,875.49,874.4,0.1984506]
[1757364927866,0.61328802,875.48,874.4,0.1984506]
[1757364928164,0.61328802,875.47,874.4,0.1984506]
[1757364928362,0.61328802,875.46,874.4,0.1984506]
[1757364928571,0.61328802,875.45,874.4,0.1984506]
[1757364928765,0.61328802,875.44,874.4,0.1984506]
[1757364929066,0.61328802,875.43,874.4,0.1984506]
[1757364929365,0.61328802,875.42,874.4,0.1984506]
[1757364929665,0.61328802,875.41,874.4,0.1984506]
[1757364929963,0.61328802,875.4,874.4,0.1984506]
[1757364930165,0.61328802,875.39,874.4,0.1984506]
[1757364930362,0.61328802,875.38,874.4,0.1984506]
[1757364930567,0.61328802,875.37,874.4,0.1984506]
[1757364930766,0.61328802,875.36,874.4,0.1984506]
[1757364930965,0.61328802,875.35,874.4,0.1984506]
[1757364931163,0.61328802,875.34,874.4,0.1984506]
[1757364931367,0.61328802,875.33,874.4,0.1984506]
[1757364931567,0.61328802,875.32,874.4,0.1984506]
[1757364931767,0.61328802,875.31,874.4,0.1984506]
[1757364931967,0.61328802,875.3,874.4,0.1984506]
[1757364932167,0.61328802,875.29,874.4,0.1984506]
[1757364932364,0.61328802,875.28,874.4,0.1984506]
[1757364932666,0.61328802,875.27,874.4,0.1984506]
[1757364932868,1.53242595,875.57,874.4,0.1984506]
[1757364933068,0.6129296,875.56,874.4,0.1984506]
[1757364933269,0.6129296,875.55,874.4,0.1984506]
[1757364933468,0.6129296,875.54,874.4,0.1984506]
[1757364933669,0.6129296,875.53,874.4,0.1984506]
[1757364933868,0.6129296,875.52,874.4,0.1984506]
[1757364934066,0.6129296,875.51,874.4,0.1984506]
[1757364934267,0.6129296,875.5,874.4,0.1984506]
[1757364934466,0.6129296,875.49,874.4,0.1984506]
[1757364934665,0.6129296,875.48,874.4,0.1984506]
[1757364934866,0.6129296,875.47,874.4,0.1984506]
[1757364935068,0.6129296,875.46,874.4,0.1984506]
[1757364935367,0.6129296,875.45,874.4,0.1984506]
[1757364935671,0.6129296,875.44,874.4,0.1984506]
[1757364935972,0.6129296,875.43,874.4,0.1984506]
[1757364936172,0.6129296,875.42,874.4,0.1984506]
[1757364936471,0.6129296,875.41,874.4,0.1984506]
[1757364936668,0.6129296,875.4,874.4,0.1984506]
[1757364936871,0.6129296,875.39,874.4,0.1984506]
[1757364937072,0.6129296,875.38,874.4,0.1984506]
[1757364937369,0.6129296,875.37,874.4,0.1984506]
[1757364937568,0.6129296,875.36,874.4,0.1984506]
[1757364937870,0.6129296,875.35,874.4,0.1984506]
[1757364938173,0.6129296,875.34,874.4,0.1984506]
[1757364938470,0.6129296,875.33,874.4,0.1984506]
[1757364938666,0.6129296,875.32,874.4,0.1984506]
[1757364938869,0.6129296,875.31,874.4,0.1984506]
[1757364939068,0.6129296,875.3,874.4,0.1984506]
[1757364939268,0.6129296,875.29,874.4,0.1984506]
[1757364939468,0.6129296,875.28,874.4,0.1984506]
[1757364939670,0.6129296,875.27,874.4,0.1984506]
[1757364939872,0.6129296,875.26,874.4,0.1984506]
[1757364940069,1.53242595,875.51,874.4,0.1984506]
[1757364940369,0.61275384,875.5,874.4,0.1984506]
[1757364940572,0.61275384,875.49,874.4,0.1984506]
[1757364940769,0.61275384,875.48,874.4,0.1984506]
[1757364940968,0.61275384,875.47,874.4,0.1984506]
[1757364941173,0.61275384,875.46,874.4,0.1984506]
[1757364941468,0.61275384,875.45,874.4,0.1984506]
[1757364941672,0.61275384,875.44,874.4,0.1984506]
[1757364941968,0.61275384,875.43,874.4,0.1984506]
[1757364942170,0.61275384,875.42,874.4,0.1984506]
[1757364942472,0.61275384,875.41,874.4,0.1984506]
[1757364942767,0.61275384,875.4,874.4,0.1984506]
[1757364942971,0.61275384,875.39,874.4,0.1984506]
[1757364943169,0.61275384,875.38,874.4,0.1984506]
[1757364943368,0.61275384,875.37,874.4,0.1984506]
[1757364943572,0.61275384,875.36,874.4,0.1984506]
[1757364943772,0.61275384,875.35,874.4,0.1984506]
[1757364944072,0.61275384,875.34,874.4,0.1984506]
[1757364944272,0.61275384,875.33,874.4,0.1984506]
[1757364944469,0.61275384,875.32,874.4,0.1984506]
[1757364944674,1.53242595,875.46,874.4,0.1984506]
[1757364944675,0.61275384,875.31,874.4,0.1984506]
[1757364944873,0.61275384,875.3,874.4,0.1984506]
[1757364945174,0.61275384,875.29,874.4,0.1984506]
[1757364945473,0.61275384,875.28,874.4,0.1984506]
[1757364945673,0.61275384,875.27,874.4,0.1984506]
[1757364945869,0.61275384,875.26,874.4,0.1984506]
[1757364946075,0.61275384,875.25,874.4,0.1984506]
[1757364946269,0.61275384,875.24,874.4,0.1984506]
[1757364946468,1.53242595,875.79,874.4,0.1984506]
[1757364946667,0.61283773,875.78,874.4,0.1984506]
[1757364946869,0.61283773,875.77,874.4,0.1984506]
[1757364947071,0.61283773,875.76,874.4,0.1984506]
[1757364947270,0.61283773,875.75,874.4,0.1984506]
[1757364947472,0.61283773,875.74,874.4,0.1984506]
[1757364947675,0.61283773,875.73,874.4,0.1984506]
[1757364947872,0.61283773,875.72,874.4,0.1984506]
[1757364948070,0.61283773,875.71,874.4,0.1984506]
[1757364948371,0.61283773,875.7,874.4,0.1984506]
[1757364948570,0.61283773,875.69,874.4,0.1984506]
[1757364948770,0.61283773,875.68,874.4,0.1984506]
[1757364948970,0.61283773,875.67,874.4,0.1984506]
[1757364949175,0.61283773,875.66,874.4,0.1984506]
[1757364949471,0.61283773,875.65,874.4,0.1984506]
[1757364949675,0.61283773,875.64,874.4,0.1984506]
[1757364949875,0.61283773,875.63,874.4,0.1984506]
[1757364950175,0.61283773,875.62,874.4,0.1984506]
[1757364950377,0.61283773,875.61,874.4,0.1984506]
[1757364950572,0.61283773,875.6,874.4,0.1984506]
[1757364950776,0.61283773,875.59,874.4,0.1984506]
[1757364950977,0.61283773,875.58,874.4,0.1984506]
[1757364951176,0.61283773,875.57,874.4,0.1984506]
[1757364951373,0.61283773,875.56,874.4,0.1984506]
[1757364951674,0.61283773,875.55,874.4,0.1984506]
[1757364951873,0.61283773,875.54,874.4,0.1984506]
[1757364952073,0.61283773,875.53,874.4,0.1984506]
[1757364952374,0.61283773,875.52,874.4,0.1984506]
[1757364952572,0.61283773,875.51,874.4,0.1984506]
[1757364952777,0.61283773,875.5,874.4,0.1984506]
[1757364953073,0.61283773,875.49,874.4,0.1984506]
[1757364953277,0.61283773,875.48,874.4,0.1984506]
[1757364953573,0.61283773,875.47,874.4,0.1984506]
[1757364953778,0.61283773,875.46,874.4,0.1984506]
[1757364954073,0.61283773,875.45,874.4,0.1984506]
[1757364954274,0.61283773,875.44,874.4,0.1984506]
[1757364954474,0.61283773,875.43,874.4,0.1984506]
[1757364954774,0.61283773,875.42,874.4,0.1984506]
[1757364954975,0.61283773,875.41,874.4,0.1984506]
[1757364955178,0.61283773,875.4,874.4,0.1984506]
[1757364955478,0.61283773,875.39,874.4,0.1984506]
[1757364955677,1.53242595,875.71,874.4,0.1984506]
[1757364955678,0.61283773,875.38,874.4,0.1984506]
[1757364955877,0.61283773,875.37,874.4,0.1984506]
[1757364956074,0.61283773,875.36,874.4,0.1984506]
[1757364956375,0.61283773,875.35,874.4,0.1984506]
[1757364956578,0.61283773,875.34,874.4,0.1984506]
[1757364956778,0.61283773,875.33,874.4,0.1984506]
[1757364957074,0.61283773,875.32,874.4,0.1984506]
[1757364957278,0.61283773,875.31,874.4,0.1984506]
[1757364957479,0.61283773,875.3,874.4,0.1984506]
[1757364957675,0.61283773,875.29,874.4,0.1984506]
[1757364957879,0.61283773,875.28,874.4,0.1984506]
[1757364958175,0.61283773,875.27,874.4,0.1984506]
[1757364958376,0.61283773,875.26,874.4,0.1984506]
[1757364958580,0.61283773,875.25,874.4,0.1984506]
[1757364958780,0.61283773,875.24,874.4,0.1984506]
[1757364958977,1.53242595,875.48,874.4,0.1984506]
[1757364959182,2.14608472,875.47,874.4,0.1984506]
[1757364959383,0.61365877,875.46,874.4,0.1984506]
[1757364959585,0.61365877,875.45,874.4,0.1984506]
[1757364959784,0.61365877,875.44,874.4,0.1984506]
[1757364959984,0.61365877,875.43,874.4,0.1984506]
[1757364960184,0.61365877,875.42,874.4,0.1984506]
[1757364960485,0.61365877,875.41,874.4,0.1984506]
[1757364960682,0.61365877,875.4,874.4,0.1984506]
[1757364960881,0.61365877,875.39,874.4,0.1984506]
[1757364961085,0.61365877,875.38,874.4,0.1984506]
[1757364961286,0.61365877,875.37,874.4,0.1984506]
[1757364961486,0.61365877,875.36,874.4,0.1984506]
[1757364961690,0.61365877,875.35,874.4,0.1984506]
[1757364961888,0.61365877,875.34,874.4,0.1984506]
[1757364962087,0.61365877,875.33,874.4,0.1984506]
[1757364962387,0.61365877,875.32,874.4,0.1984506]
[1757364962588,0.61365877,875.31,874.4,0.1984506]
[1757364962788,0.61365877,875.3,874.4,0.1984506]
[1757364963088,0.61365877,875.29,874.4,0.1984506]
[1757364963289,0.61365877,875.28,874.4,0.1984506]
[1757364963489,0.61365877,875.27,874.4,0.1984506]
[1757364963686,0.61365877,875.26,874.4,0.1984506]
[1757364963891,0.61365877,875.25,874.4,0.1984506]
[1757364964094,0.61365877,875.24,874.4,0.1984506]
[1757364964292,1.53242595,875.38,874.4,0.1984506]
[1757364964489,0.61442704,875.37,874.4,0.1984506]
[1757364964791,0.61442704,875.36,874.4,0.1984506]
[1757364964992,0.61442704,875.35,874.4,0.1984506]
[1757364965192,0.61442704,875.34,874.4,0.1984506]
[1757364965389,0.61442704,875.33,874.4,0.1984506]
[1757364965597,0.61442704,875.32,874.4,0.1984506]
[1757364965801,0.61442704,875.31,874.4,0.1984506]
[1757364965998,2.56196976,876.02,874.4,0.1984506]
[1757364965999,0.61442704,875.3,874.4,0.1984506]
[1757364966197,0.61442704,875.29,874.4,0.1984506]
[1757364966398,0.61442704,875.28,874.4,0.1984506]
[1757364966698,0.61442704,875.27,874.4,0.1984506]
[1757364966901,0.61442704,875.26,874.4,0.1984506]
[1757364967097,1.53242595,875.31,874.4,0.1984506]
[1757364967098,0.61442704,875.25,874.4,0.1984506]
[1757364967302,0.61442704,875.24,874.4,0.1984506]
[1757364967599,1.53242595,875.25,874.4,0.1984506]
[1757364967799,0.61496725,875.24,874.4,0.1984506]
[1757364968004,1.53242595,875.26,874.4,0.1984506]
[1757364968298,0.61501521,875.25,874.4,0.1984506]
[1757364968501,0.61501521,875.24,874.4,0.1984506]
[1757364968701,1.53242595,875.25,874.4,0.1984506]
[1757364968903,0.61501518,875.24,874.4,0.1984506]
[1757364969101,1.53242595,875.25,874.4,0.1984506]
[1757364969396,0.61507882,875.24,874.4,0.1984506]
[1757364969698,0.61507882,875.23,874.4,0.1984506]
[1757364970001,1.53242595,875.24,874.4,0.1984506]
[1757364970202,0.61507222,875.23,874.4,0.1984506]
[1757364970498,1.53242595,875.24,874.4,0.1984506]
[1757364970699,0.61514454,875.23,874.4,0.1984506]
[1757364970903,1.53242595,875.24,874.4,0.1984506]
[1757364971202,2.14757054,875.23,874.4,0.1984506]
[1757364971400,1.53242595,875.23,874.4,0.1984506]
[1757364978411,1.53242595,875.31,874.4,0.1984506]
[1757364978612,0.6153849,875.3,874.4,0.1984506]
[1757364978807,0.6153849,875.29,874.4,0.1984506]
[1757364979111,0.6153849,875.28,874.4,0.1984506]
[1757364979312,0.6153849,875.27,874.4,0.1984506]
[1757364979513,0.6153849,875.26,874.4,0.1984506]
[1757364979713,0.6153849,875.25,874.4,0.1984506]
[1757364979913,0.6153849,875.24,874.4,0.1984506]
[1757364980112,0.6153849,875.23,874.4,0.1984506]
[1757364980312,1.53242595,875.31,874.4,0.1984506]
[1757364980610,0.61541065,875.3,874.4,0.1984506]
[1757364980810,0.61541065,875.29,874.4,0.1984506]
[1757364981114,0.61541065,875.28,874.4,0.1984506]
[1757364981315,0.61541065,875.27,874.4,0.1984506]
[1757364981510,0.61541065,875.26,874.4,0.1984506]
[1757364981814,0.61541065,875.25,874.4,0.1984506]
[1757364982015,0.61541065,875.24,874.4,0.1984506]
[1757364982211,0.61541065,875.23,874.4,0.1984506]
[1757364982411,1.53242595,875.31,874.4,0.1984506]
[1757364982715,0.61543179,875.3,874.4,0.1984506]
[1757364983015,0.61543179,875.29,874.4,0.1984506]
[1757364983210,0.61543179,875.28,874.4,0.1984506]
[1757364983411,0.61543179,875.27,874.4,0.1984506]
[1757364983615,0.61543179,875.26,874.4,0.1984506]
[1757364983912,0.61543179,875.25,874.4,0.1984506]
[1757364984115,0.61543179,875.24,874.4,0.1984506]
[1757364984414,0.61543179,875.23,874.4,0.1984506]
[1757364984614,1.53242595,875.33,874.4,0.1984506]
[1757364984814,0.61545496,875.32,874.4,0.1984506]
[1757364985012,0.61545496,875.31,874.4,0.1984506]
[1757364985213,0.61545496,875.3,874.4,0.1984506]
[1757364985413,1.53242595,875.33,874.4,0.1984506]
[1757364985414,0.61545496,875.29,874.4,0.1984506]
[1757364985718,0.61545496,875.28,874.4,0.1984506]
[1757364985914,0.61545496,875.27,874.4,0.1984506]
[1757364986215,0.61545496,875.26,874.4,0.1984506]
[1757364986413,0.61545496,875.25,874.4,0.1984506]
[1757364986618,0.61545496,875.24,874.04,1.5236796]
[1757364986915,0.61545496,875.23,874.48,0.1985123]
[1757364987118,1.53242595,875.35,874.04,1.5236796]
[1757364987312,0.61809406,875.34,874.04,1.5236796]
[1757364987517,0.61809406,875.33,874.55,0.19851343]
[1757364987719,0.61809406,875.32,874.04,1.5236796]
[1757364987920,0.61809406,875.31,874.62,0.19850777]
[1757364988215,0.61809406,875.3,874.04,1.5236796]
[1757364988417,2.15052001,875.29,874.68,0.1985089]
[1757364988618,0.61809406,875.28,874.68,0.1985089]
[1757364988920,0.61809406,875.27,874.09,1.5236796]
[1757364989114,0.61809406,875.26,874.73,0.19850777]
[1757364989315,0.61809406,875.25,874.09,1.5236796]
[1757364989515,0.61809406,875.24,874.09,1.5236796]
[1757364989820,0.61809406,875.23,874.09,1.5236796]
[1757364990020,1.53242595,875.29,874.09,1.5236796]
[1757364990317,2.15053299,875.28,874.37,0.19851003]
[1757364990515,0.61810704,875.27,874.37,0.19851003]
[1757364990821,0.61810704,875.26,874.37,0.19851003]
[1757364991018,0.61810704,875.25,874.37,0.19851003]
[1757364991217,0.61810704,875.24,874.37,0.19851003]
[1757364991522,1.53242595,875.32,874.37,0.19851003]
[1757364991818,1.53242595,875.3,874.37,0.19851003]
[1757364992022,0.61812344,875.29,874.37,0.19851003]
[1757364992217,0.61812344,875.28,874.37,0.19851003]
[1757364992421,0.61812344,875.27,874.37,0.19851003]
[1757364992718,0.61812344,875.26,874.37,0.19851003]
[1757364992917,0.61812344,875.25,874.37,0.19851003]
[1757364993118,0.61812344,875.24,874.37,0.19851003]
[1757364993319,1.53242595,875.3,874.37,0.19851003]
[1757364993518,0.61814889,875.29,874.37,0.19851003]
[1757364993723,1.53242595,875.27,874.37,0.19851003]
[1757364993920,0.61814889,875.26,874.37,0.19851003]
[1757364994119,0.61814889,875.25,874.37,0.19851003]
[1757364994323,0.61814889,875.24,874.37,0.19851003]
[1757364994524,1.53242595,875.28,874.37,0.19851003]
[1757364994721,0.61816307,875.27,874.37,0.19851003]
[1757364994924,0.61816307,875.26,874.37,0.19851003]
[1757364995219,0.61816307,875.25,874.37,0.19851003]
[1757364995425,2.15058902,875.24,874.37,0.19851003]
[1757364995721,1.53242595,875.24,874.37,0.19851003]
[1757364999030,1.53242595,875.38,874.37,0.19851003]
[1757364999229,0.61952407,875.37,874.37,0.19851003]
[1757364999429,0.61952407,875.36,874.37,0.19851003]
[1757364999630,0.61952407,875.35,874.37,0.19851003]
[1757364999829,0.61952407,875.34,874.37,0.19851003]
[1757365000030,0.61952407,875.33,874.37,0.19851003]
[1757365000232,0.61952407,875.32,874.37,0.19851003]
[1757365000426,0.61952407,875.31,874.37,0.19851003]
[1757365000632,0.61952407,875.3,874.37,0.19851003]
[1757365000832,0.61952407,875.29,874.37,0.19851003]
[1757365001128,0.61952407,875.28,874.37,0.19851003]
[1757365001333,0.61952407,875.27,874.37,0.19851003]
[1757365001628,0.61952407,875.26,874.37,0.19851003]
[1757365001834,0.61952407,875.25,874.37,0.19851003]
[1757365002033,0.61952407,875.24,874.37,0.19851003]
[1757365002233,1.53242595,875.39,874.37,0.19851003]
[1757365002431,2.15199642,875.38,874.37,0.19851003]
[1757365002734,0.61957047,875.37,874.37,0.19851003]
[1757365002928,0.61957047,875.36,874.37,0.19851003]
[1757365003129,0.61957047,875.35,874.37,0.19851003]
[1757365003334,0.61957047,875.34,874.37,0.19851003]
[1757365003536,0.61957047,875.33,874.37,0.19851003]
[1757365003734,0.61957047,875.32,874.37,0.19851003]
[1757365003933,0.61957047,875.31,874.37,0.19851003]
[1757365004230,0.61957047,875.3,874.37,0.19851003]
[1757365004535,0.61957047,875.29,874.37,0.19851003]
[1757365004732,0.61957047,875.28,874.37,0.19851003]
[1757365004931,0.61957047,875.27,874.37,0.19851003]
[1757365005134,0.61957047,875.26,874.37,0.19851003]
[1757365005332,0.61957047,875.25,874.37,0.19851003]
[1757365005536,0.61957047,875.24,874.37,0.19851003]
[1757365005736,1.53242595,875.37,874.37,0.19851003]
[1757365005934,0.62092632,875.36,874.37,0.19851003]
[1757365006133,0.62092632,875.35,874.37,0.19851003]
[1757365006334,0.62092632,875.34,874.37,0.19851003]
[1757365006538,0.62092632,875.33,874.37,0.19851003]
[1757365006737,0.62092632,875.32,874.37,0.19851003]
[1757365007034,0.62092632,875.31,874.37,0.19851003]
[1757365007233,0.62092632,875.3,874.37,0.19851003]
[1757365007538,0.62092632,875.29,874.37,0.19851003]
[1757365007737,0.62092632,875.28,874.37,0.19851003]
[1757365007934,0.62092632,875.27,874.37,0.19851003]
[1757365008133,0.62092632,875.26,874.37,0.19851003]
[1757365008434,0.62092632,875.25,874.37,0.19851003]
[1757365008637,0.62092632,875.24,874.37,0.19851003]
[1757365008839,1.53242595,875.24,874.37,0.19851003]
[1757365010634,1.53242595,875.27,874.37,0.19851003]
[1757365010838,0.6209266,875.26,874.37,0.19851003]
[1757365011039,0.6209266,875.25,874.37,0.19851003]
[1757365011240,0.6209266,875.24,874.37,0.19851003]
[1757365011438,1.53242595,875.27,874.37,0.19851003]
[1757365011742,0.62092652,875.26,874.37,0.19851003]
[1757365011941,0.62092652,875.25,874.37,0.19851003]
[1757365012142,0.62092652,875.24,874.37,0.19851003]
[1757365012342,1.53242595,875.31,874.37,0.19851003]
[1757365012544,0.62092656,875.3,874.37,0.19851003]
[1757365012743,0.62092656,875.29,874.37,0.19851003]
[1757365013040,0.62092656,875.28,874.37,0.19851003]
[1757365013240,0.62092656,875.27,874.37,0.19851003]
[1757365013440,0.62092656,875.26,874.37,0.19851003]
[1757365013641,0.62092656,875.25,874.37,0.19851003]
[1757365013844,0.62092656,875.24,874.37,0.19851003]
[1757365014042,1.53242595,875.57,874.37,0.19851003]
[1757365014247,0.62092673,875.56,874.37,0.19851003]
[1757365014446,0.62092673,875.55,874.37,0.19851003]
[1757365014642,0.62092673,875.54,874.37,0.19851003]
[1757365014850,0.62092673,875.53,874.37,0.19851003]
[1757365015044,0.62092673,875.52,874.37,0.19851003]
[1757365015249,0.62092673,875.51,874.37,0.19851003]
[1757365015449,0.62092673,875.5,874.37,0.19851003]
[1757365015649,0.62092673,875.49,874.37,0.19851003]
[1757365015849,0.62092673,875.48,874.37,0.19851003]
[1757365016048,0.62092673,875.47,874.37,0.19851003]
[1757365016249,0.62092673,875.46,874.37,0.19851003]
[1757365016447,0.62092673,875.45,874.37,0.19851003]
[1757365016746,0.62092673,875.44,874.37,0.19851003]
[1757365017048,0.62092673,875.43,874.37,0.19851003]
[1757365017244,0.62092673,875.42,874.37,0.19851003]
[1757365017448,0.62092673,875.41,874.37,0.19851003]
[1757365017646,0.62092673,875.4,874.37,0.19851003]
[1757365017848,0.62092673,875.39,874.37,0.19851003]
[1757365018048,0.62092673,875.38,874.37,0.19851003]
[1757365018246,0.62092673,875.37,874.37,0.19851003]
[1757365018548,0.62092673,875.36,874.37,0.19851003]
[1757365018746,0.62092673,875.35,874.37,0.19851003]
[1757365018948,0.62092673,875.34,874.37,0.19851003]
[1757365019147,0.62092673,875.33,874.37,0.19851003]
[1757365019355,0.62092673,875.32,874.37,0.19851003]
[1757365019555,0.62092673,875.31,874.37,0.19851003]
[1757365019750,0.62092673,875.3,874.37,0.19851003]
[1757365019953,0.62092673,875.29,874.37,0.19851003]
[1757365020152,0.62092673,875.28,874.37,0.19851003]
[1757365020355,0.62092673,875.27,874.37,0.19851003]
[1757365020552,0.62092673,875.26,874.37,0.19851003]
[1757365020756,0.62092673,875.25,874.37,0.19851003]
[1757365021056,0.62092673,875.24,874.37,0.19851003]
[1757365021256,0.62092673,875.23,874.37,0.19851003]
[1757365021455,1.53242595,875.63,874.37,0.19851003]
[1757365021654,0.62211574,875.62,874.37,0.19851003]
[1757365021855,0.62211574,875.61,874.37,0.19851003]
[1757365022059,0.62211574,875.6,874.37,0.19851003]
[1757365022260,0.62211574,875.59,874.37,0.19851003]
[1757365022555,1.53242595,875.53,874.37,0.19851003]
[1757365022760,0.62211574,875.52,874.37,0.19851003]
[1757365022959,0.62211574,875.51,874.37,0.19851003]
[1757365023155,0.62211574,875.5,874.37,0.19851003]
[1757365023359,0.62211574,875.49,874.37,0.19851003]
[1757365023658,0.62211574,875.48,874.37,0.19851003]
[1757365023854,0.62211574,875.47,874.37,0.19851003]
[1757365024056,0.62211574,875.46,874.37,0.19851003]
[1757365024257,0.62211574,875.45,874.37,0.19851003]
[1757365024461,0.62211574,875.44,874.37,0.19851003]
[1757365024760,0.62211574,875.43,874.37,0.19851003]
[1757365024958,0.62211574,875.42,874.37,0.19851003]
[1757365025160,0.62211574,875.41,874.37,0.19851003]
[1757365025361,0.62211574,875.4,874.37,0.19851003]
[1757365025560,0.62211574,875.39,874.37,0.19851003]
[1757365025760,0.62211574,875.38,874.37,0.19851003]
[1757365025960,0.62211574,875.37,874.37,0.19851003]
[1757365026256,0.62211574,875.36,874.37,0.19851003]
[1757365026561,0.62211574,875.35,874.37,0.19851003]
[1757365026761,0.62211574,875.34,874.37,0.19851003]
[1757365026962,0.62211574,875.33,874.37,0.19851003]
[1757365027157,0.62211574,875.32,874.37,0.19851003]
[1757365027363,0.62211574,875.31,874.37,0.19851003]
[1757365027664,0.62211574,875.3,874.37,0.19851003]
[1757365027859,0.62211574,875.29,874.37,0.19851003]
[1757365028063,0.62211574,875.28,874.37,0.19851003]
[1757365028259,0.62211574,875.27,874.37,0.19851003]
[1757365028464,0.62211574,875.26,874.37,0.19851003]
[1757365028665,0.62211574,875.25,874.37,0.19851003]
[1757365028860,0.62211574,875.24,874.37,0.19851003]
[1757365029060,0.62211574,875.23,874.37,0.19851003]
[1757365029259,1.53242595,875.52,874.37,0.19851003]
[1757365029466,0.62211052,875.51,874.37,0.19851003]
[1757365029762,0.62211052,875.5,874.37,0.19851003]
[1757365029962,0.62211052,875.49,874.37,0.19851003]
[1757365030165,0.62211052,875.48,874.37,0.19851003]
[1757365030365,0.62211052,875.47,874.37,0.19851003]
[1757365030661,0.62211052,875.46,874.37,0.19851003]
[1757365030860,0.62211052,875.45,874.37,0.19851003]
[1757365031065,0.62211052,875.44,874.37,0.19851003]
[1757365031264,1.53242595,875.52,874.37,0.19851003]
[1757365031265,0.62211052,875.43,874.37,0.19851003]
[1757365031467,0.62211052,875.42,874.37,0.19851003]
[1757365031664,0.62211052,875.41,874.37,0.19851003]
[1757365031866,0.62211052,875.4,874.37,0.19851003]
[1757365032066,0.62211052,875.39,874.37,0.19851003]
[1757365032267,0.62211052,875.38,874.37,0.19851003]
[1757365032468,0.62211052,875.37,874.37,0.19851003]
[1757365032669,0.62211052,875.36,874.37,0.19851003]
[1757365032969,0.62211052,875.35,873.84,1.5236796]
[1757365033164,0.62211052,875.34,873.84,1.5236796]
[1757365033366,0.62211052,875.33,873.84,1.5236796]
[1757365033666,0.62211052,875.32,873.84,1.5236796]
[1757365033866,0.62211052,875.31,873.84,1.5236796]
[1757365034065,0.62211052,875.3,873.84,1.5236796]
[1757365034263,0.62211052,875.29,873.84,1.5236796]
[1757365034466,0.62211052,875.28,873.84,1.5236796]
[1757365034670,0.62211052,875.27,873.84,1.5236796]
[1757365034864,0.62211052,875.26,873.84,1.5236796]
[1757365035165,0.62211052,875.25,873.84,1.5236796]
[1757365035366,0.62211052,875.24,873.84,1.5236796]
[1757365035565,0.62211052,875.23,873.84,1.5236796]
[1757365035870,1.53242595,875.47,873.92,1.5236796]
[1757365036170,0.62211231,875.46,873.92,1.5236796]
[1757365036469,0.62211231,875.45,873.93,1.5236796]
[1757365036767,0.62211231,875.44,873.93,1.5236796]
[1757365037065,0.62211231,875.43,873.93,1.5236796]
[1757365037265,1.53242595,875.46,873.93,1.5236796]
[1757365037266,0.62211231,875.42,873.93,1.5236796]
[1757365037567,0.62211231,875.41,874.3,0.19850834]
[1757365037766,0.62211231,875.4,874.3,0.19850834]
[1757365037971,0.62211231,875.39,874.3,0.19850834]
[1757365038270,0.62211231,875.38,874.3,0.19850834]
[1757365038566,0.62211231,875.37,874.3,0.19850834]
[1757365038772,0.62211231,875.36,874.3,0.19850834]
[1757365038970,0.62211231,875.35,874.3,0.19850834]
[1757365039170,0.62211231,875.34,874.3,0.19850834]
[1757365039371,0.62211231,875.33,874.3,0.19850834]
[1757365039573,0.62211231,875.32,874.3,0.19850834]
[1757365039867,0.62211231,875.31,874.3,0.19850834]
[1757365040069,0.62211231,875.3,874.3,0.19850834]
[1757365040268,0.62211231,875.29,874.3,0.19850834]
[1757365040474,0.62211231,875.28,874.3,0.19850834]
[1757365040670,0.62211231,875.27,874.3,0.19850834]
[1757365040873,0.62211231,875.26,874.3,0.19850834]
[1757365041068,0.62211231,875.25,874.3,0.19850834]
[1757365041369,0.62211231,875.24,874.3,0.19850834]
[1757365041575,0.62211231,875.23,874.3,0.19850834]
[1757365041772,1.53242595,875.42,874.3,0.19850834]
[1757365041974,1.53242595,875.34,874.3,0.19850834]
[1757365042172,0.6221108,875.33,874.3,0.19850834]
[1757365042378,0.6221108,875.32,874.3,0.19850834]
[1757365042677,0.6221108,875.31,874.3,0.19850834]
[1757365042974,0.6221108,875.3,874.3,0.19850834]
[1757365043177,0.6221108,875.29,874.3,0.19850834]
[1757365043475,0.6221108,875.28,874.3,0.19850834]
[1757365043673,0.6221108,875.27,874.3,0.19850834]
[1757365043873,0.6221108,875.26,874.3,0.19850834]
[1757365044077,0.6221108,875.25,874.3,0.19850834]
[1757365044277,0.6221108,875.24,874.3,0.19850834]
[1757365044478,0.6221108,875.23,874.3,0.19850834]